[Event "FIDE WCCC U10 2018"]
[Site "Santiago de Compostela"]
[Date "2018.11.04"]
[Round "1"]
[White "Zhao, Erick"]
[Black "Fava, Lorenzo"]
[Result "1-0"]
[ECO "A46"]
[WhiteElo "1957"]
[BlackElo "1481"]
[Annotator "NA RC"]
[PlyCount "149"]
[EventDate "2018.11.04"]
[EventType "swiss"]
[EventCountry "ESP"]
[SourceTitle "playchess.com"]
[Source "ChessBase"]
[SourceQuality "1"]
[TimeControl "40/5400+30:1800+30"]

{[%evp 10,149,14,32767,32767,32767,32767,32767,32767,32767,23,32767,32767,32767,63,9,32767,32767,32767,32767,32767,32767,32767,32767,32767,32767,32767,32767,32767,32767,32767,32767,32767,32767,32767,32767,349,32767,-35,570,582,589,32767,32767,32767,626,32767,32767,32767,32767,32767,32767,309,32767,32767,32767,267,32767,301,283,310,204,307,32767,32767,32767,287,302,498,621,769,725,1624,0,2124,5264,2050,29988,29988,5079,4677,29967,5435,12850,173,211,187,222,193,32767,32767,32767,201,176,419,727,806,32767,32767,32767,883,674,891,397,29970,12851,10275,29974,5097,32767,32767,32767,12577,7055,7262,5346,29970,32767,29973,12422,29978,29975,29974,32767,32767,32767,32767,5628,12851,29985,29976,29985,29985,29982,29987,29985,12851,29988,29987,29987,29989,29990]} 1. d4 {[%emt 0:00:00]} Nf6 {[%emt 0:00:00]} 2. Nf3 {[%emt 0:00:00]} e6 {[%emt 0:00:12]} 3. e3 {[%emt 0:01:29]} c5 {[%emt 0:00:53]} 4. Bd3 {[%emt 0:00:41]} Be7 {[%emt 0:01:03]} 5. O-O {[%emt 0:00:15]} Nc6 {[%emt 0:00:33] LiveBook: 48 Games} 6. a3 {[%emt 0:00:46]} d5 {[%emt 0:00:58]} 7. b3 O-O {[%emt 0:00:43]} 8. Bb2 {[%emt 0:01:07]} b6 {[%emt 0:01:35]} 9. Nbd2 {[%emt 0:01:16]} Bb7 {[%emt 0:02:30]} 10. Ne5 {[%emt 0:01:01] D05: Colle System with ...e6} (10. Qe2 Qc7 11. Rac1 Rac8 12. c4 dxc4 13. bxc4 cxd4 14. exd4 Rfe8 15. Rfe1 Qb8 16. Ne4 Na5 17. Neg5 Qf4 18. Nxe6 fxe6 19. Qxe6+ {0-1 (33) Mamedyarov,S (2808)-Nakamura,H (2769) Paris 2018}) 10... Nd7 {[%emt 0:02:29]} 11. f4 {[%emt 0:00:32]} Qe8 $146 {[%emt 0:04:49]} (11... Ndxe5 $11 12. fxe5 a5) ({Predecessor:} 11... f5 12. Nxc6 Bxc6 13. g4 g6 14. Qe2 Bf6 15. Qg2 Kh8 16. Nf3 Rc8 {½-½ (16) Dyachkov,S (2573)-Panarin,M (2532) Dagomys 2010}) 12. Rf3 {[%emt 0:01:50]} f5 {[%emt 0:01:41]} 13. g4 {[%emt 0:03:34]} Ndxe5 {[%emt 0:00:53]} 14. fxe5 {[%emt 0:00:17]} fxg4 {[%emt 0:00:42]} 15. Rg3 {[%emt 0:01:50]} Bh4 {[%emt 0:02:03]} 16. Rg2 {[%emt 0:03:19]} h5 {[%emt 0:02:44]} 17. h3 {[%emt 0:02:10]} gxh3 {[%emt 0:03:33]} 18. Rg6 {[%emt 0:04:54]} Qf7 {[%emt 0:04:31]} 19. Qxh5 {[%emt 0:04:25]} Ne7 {[%emt 0:05:30]} 20. Rf1 {[%emt 0:00:35]} Nf5 {[%emt 0:09:57]} 21. Bxf5 {[%emt 0:02:05]} exf5 {[%emt 0:00:56]} 22. dxc5 {[%emt 0:01:20]} d4 {[%emt 0:10:44]} 23. e6 {[%emt 0:10:14]} h2+ {[%emt 0:17:21]} 24. Kxh2 {[%emt 0:00:02]} Qc7+ {[%emt 0:00:19]} 25. Kh3 {[%emt 0:02:36]} Rf6 {[%emt 0:06:49]} 26. Rfg1 {[%emt 0:04:43]} Rxg6 {[%emt 0:02:42]} 27. Qxg6 {[%emt 0:01:02]} ({Not} 27. Rxg6 Bf6 $18) 27... bxc5 {[%emt 0:00:40]} 28. Qf7+ {[%emt 0:00:43]} Qxf7 {[%emt 0:00:17]} 29. exf7+ {[%emt 0:00:01]} Kxf7 {[%emt 0:00:02]} 30. Kxh4 {[%emt 0:00:10]} dxe3 {[%emt 0:00:37]} 31. Nc4 {[%emt 0:00:21]} Rh8+ {[%emt 0:00:26]} 32. Kg3 {[%emt 0:00:36]} Bd5 {[%emt 0:00:28]} 33. Nxe3 {[%emt 0:00:45]} Be4 {[%emt 0:00:19]} 34. Kf4 {[%emt 0:01:56]} Rh4+ {[%emt 0:00:44]} 35. Kg5 {[%emt 0:03:36]} Rh6 {[%emt 0:00:55]} 36. Rd1 {[%emt 0:01:07]} Rh3 {[%emt 0:01:43]} 37. Nxf5 {[%emt 0:00:58]} Bxc2 {[%emt 0:02:24]} 38. Rd7+ {[%emt 0:00:54]} Ke8 {[%emt 0:00:29]} (38... Ke6 $142 39. Re7+ (39. Rxg7 Bxf5 40. b4 Rh2 $11) 39... Kd5 40. Re5+ Kc6) 39. Rxa7 {[%emt 0:01:51]} Bxf5 {[%emt 0:00:09]} 40. Kxf5 {[%emt 0:00:00]} Rxb3 {[%emt 0:00:00]} 41. Ke6 $2 {[%emt 0:00:59]} ({White should play} 41. Bxg7 $18 Kd8 42. Ke6) 41... Kd8 $2 {[%emt 0:01:10]} (41... Rb6+ $11 42. Kd5 Rxb2) 42. Be5 {[%emt 0:00:36]} Rb6+ {[%emt 0:01:39]} 43. Bd6 {[%emt 0:00:45]} Kc8 {[%emt 0:01:05]} 44. Rc7+ {[%emt 0:00:27]} (44. a4 $142 c4 45. a5 Rc6 46. a6 Rxa6 47. Rxa6 Kb7 48. Ra5 c3 49. Rc5) 44... Kb8 {[%emt 0:02:42]} 45. Rxg7+ {[%emt 0:00:08]} Ka8 {[%emt 0:00:19]} 46. Rc7 {[%emt 0:00:37]} Ra6 {[%emt 0:01:00]} 47. Rc8+ $2 {[%emt 0:00:37]} (47. Rxc5 Rxa3 48. Rb5) 47... Kb7 {[%emt 0:00:17]} 48. Rb8+ {[%emt 0:01:23]} ({Less strong is} 48. Rxc5 Rxa3 49. Rc4 Ra7 $14) 48... Kc6 $1 {[%emt 0:02:12]} 49. Rc8+ {[%emt 0:00:12]} Kb7 {[%emt 0:00:09]} 50. Rb8+ {[%emt 0:00:07]} Kc6 {[%emt 0:00:12] [#]} 51. Rb3 $1 {[%emt 0:00:03]} Rb6 $2 {[%emt 0:00:47]} (51... Ra4 52. Rc3 Re4+ 53. Be5 c4) 52. Rc3 {[%emt 0:00:09]} Rb5 {[%emt 0:00:07]} 53. a4 {[%emt 0:00:36]} Ra5 {[%emt 0:00:15]} 54. Rc4 {[%emt 0:00:03]} Ra6 {[%emt 0:01:54]} 55. Rxc5+ {[%emt 0:00:22]} Kb6 {[%emt 0:00:19]} 56. Rc4 {[%emt 0:00:12]} Kb7 {[%emt 0:00:26]} 57. Kd7 {[%emt 0:00:06]} Rb6 {[%emt 0:01:32]} 58. Rc5 {[%emt 0:00:57]} Ka7 {[%emt 0:00:39]} 59. a5 {[%emt 0:00:44]} Rb7+ {[%emt 0:00:13]} 60. Bc7 {[%emt 0:00:07]} Rb1 {[%emt 0:02:55]} 61. Rc6 {[%emt 0:00:45]} Rh1 {[%emt 0:01:05]} 62. Kc8 {[%emt 0:00:52]} Rh8+ {[%emt 0:00:17]} 63. Bd8 {[%emt 0:00:04]} Rh7 {[%emt 0:00:19]} 64. Rb6 {[%emt 0:00:16]} (64. Bf6 $142 Ka8 65. Rd6 (65. Bd4 Rc7+ 66. Kxc7 $11) 65... Rb7 66. Ra6+ Ra7 67. Rb6 Rb7 68. Rd6 Rf7 69. Re6) 64... Rh5 {[%emt 0:01:26]} 65. Rb7+ {[%emt 0:00:28]} Ka8 {[%emt 0:00:27]} 66. Rb8+ {[%emt 0:02:14]} Ka7 {[%emt 0:00:06]} 67. Bb6+ {[%emt 0:00:03]} Ka6 {[%emt 0:00:03]} 68. Ra8+ {[%emt 0:00:08]} Kb5 {[%emt 0:00:07]} 69. Kb7 {[%emt 0:00:05]} Rh7+ {[%emt 0:02:37]} 70. Bc7 {[%emt 0:00:46]} Rh1 {[%emt 0:00:35]} 71. a6 {[%emt 0:00:16]} Kc5 {[%emt 0:00:17]} 72. Rc8 {[%emt 0:00:12]} Rb1+ {[%emt 0:00:17]} 73. Bb6+ {[%emt 0:00:06]} Kd6 {[%emt 0:00:03]} 74. Rd8+ {[%emt 0:00:15]} Ke7 {[%emt 0:00:11]} 75. a7 {[%emt 0:00:08]} 1-0

[Event "FIDE WCCC U10 2018"]
[Site "Santiago de Compostela"]
[Date "2018.11.04"]
[Round "1"]
[White "Cherniaiev, Tykhon"]
[Black "Tudela Gonzalez, Victor"]
[Result "0-1"]
[ECO "B80"]
[WhiteElo "1940"]
[BlackElo "1461"]
[Annotator "NA RC"]
[PlyCount "128"]
[EventDate "2018.11.04"]
[EventType "swiss"]
[EventCountry "ESP"]
[SourceTitle "playchess.com"]
[Source "ChessBase"]
[SourceQuality "1"]
[TimeControl "40/5400+30:1800+30"]

{[%evp 11,127,21,32767,31,32767,32767,32767,32767,32767,32767,32767,-23,32767,32767,32767,32767,32767,32767,-36,32767,32767,32767,-61,-78,-91,-96,-97,-116,-96,-299,-296,32767,32767,32767,32767,32767,32767,32767,32767,32767,32767,32767,-393,32767,32767,-308,-264,32767,32767,32767,32767,-280,32767,32767,-245,-238,-250,-685,-720,-737,-692,-770,-784,-739,-752,-953,-1060,-978,-713,-787,-750,32767,-708,-652,-685,-651,32767,32767,-681,32767,-749,-688,-570,-681,-715,-673,-868,-1010,-1129,-1174,-1516,-1867,-2141,-1885,-12445,-29959,32767,32767,32767,32767,32767,32767,32767,32767,32767,32767,32767,32767,32767,32767,32767,-29995,32767,-29996,-29995,-29998,-29999,-29999]} 1. e4 {[%emt 0:00:00]} c5 {[%emt 0:00:14]} 2. Nf3 {[%emt 0:00:00]} d6 {[%emt 0:01:00]} 3. d4 {[%emt 0:00:00]} Nf6 {[%emt 0:01:18]} 4. Nc3 {[%emt 0:00:01]} cxd4 {[%emt 0:01:01]} 5. Nxd4 {[%emt 0:00:01]} e6 {[%emt 0:01:29]} 6. Be3 {[%emt 0:03:16] LiveBook: 2237 Games} a6 {[%emt 0:01:45]} 7. Be2 {[%emt 0:00:57]} Qc7 {[%emt 0:01:31]} 8. O-O {[%emt 0:00:47]} b5 {[%emt 0:01:00]} 9. a3 {[%emt 0:00:12]} Bb7 {[%emt 0:01:24]} 10. Bd3 {[%emt 0:02:09]} Nbd7 {[%emt 0:01:27]} 11. Re1 {[%emt 0:02:37] B84: Sicilian Scheveningen: 6 Be2 a6, lines without early Be3} (11. f4 g6 12. Kh1 Bg7 13. Qf3 Nc5 14. Rae1 O-O 15. Bg1 Rae8 16. Nb3 Nfd7 17. Qh3 f5 18. exf5 exf5 19. Nxc5 dxc5 {½-½ (45) Gabrielian,A (2545)-Shomoev,A (2560) Dombai 2013}) 11... Be7 {[%emt 0:04:16]} 12. Qe2 $146 {[%emt 0:08:49]} ({Predecessor:} 12. f4 O-O 13. Kh1 Rac8 14. Qe2 Nc5 15. Qf3 d5 16. e5 Nfe4 17. Bxe4 Nxe4 18. Nxe4 dxe4 19. Qg3 Rfd8 20. c3 Bc5 21. Rad1 Kh8 22. f5 Bxd4 23. Bxd4 exf5 24. Qg5 Bd5 25. Qxf5 Qd7 {½-½ (25) Petruzzelli,R (2201)-Pezzica,G (2429) ICCF email 2005}) 12... O-O {[%emt 0:03:54]} 13. Rad1 {[%emt 0:00:50]} Nc5 {[%emt 0:04:38]} 14. Bc1 {[%emt 0:03:27]} Rfd8 {[%emt 0:03:57]} 15. Nf3 {[%emt 0:11:41]} d5 {[%emt 0:09:50]} 16. exd5 {[%emt 0:06:19]} Nxd5 {[%emt 0:04:30]} 17. Nxd5 {[%emt 0:04:19]} Bxd5 {[%emt 0:03:51]} 18. Ne5 {[%emt 0:13:25]} Bd6 {[%emt 0:02:45]} 19. h3 {[%emt 0:04:24]} Rac8 {[%emt 0:06:16]} 20. Ng4 $2 {[%emt 0:03:25]} (20. Bd2 $15) 20... Nxd3 {[%emt 0:05:09]} 21. cxd3 {[%emt 0:00:59]} Bb3 {[%emt 0:02:56]} 22. Bg5 {[%emt 0:01:46]} Bxd1 {[%emt 0:01:00]} 23. Rxd1 {[%emt 0:00:03]} Be7 {[%emt 0:00:33]} 24. Be3 {[%emt 0:02:02]} Qc2 {[%emt 0:01:41]} 25. Rd2 {[%emt 0:00:44]} Qb3 {[%emt 0:00:28]} 26. Kh2 {[%emt 0:02:07]} Bd6+ {[%emt 0:00:28]} 27. f4 {[%emt 0:01:02]} Bc5 {[%emt 0:01:17]} 28. d4 {[%emt 0:00:24]} Bb6 {[%emt 0:00:45]} 29. Qf2 {[%emt 0:00:53]} Qd5 {[%emt 0:01:57]} 30. Qg3 {[%emt 0:00:07]} Kh8 {[%emt 0:01:21]} 31. Ne5 {[%emt 0:02:11]} Rc7 {[%emt 0:01:04]} 32. f5 {[%emt 0:05:02]} f6 {[%emt 0:01:39]} (32... exf5 $142 33. Qf3 Qxf3 34. Nxf3 Kg8) 33. fxe6 {[%emt 0:01:22]} Qxe6 {[%emt 0:00:39]} ({Schwächer ist} 33... fxe5 34. dxe5 Qxd2 35. Bxd2 $16) 34. Nd3 $2 {[%emt 0:02:20]} (34. d5 Qd6 35. Ng4) 34... Re7 {[%emt 0:00:34]} 35. Bf4 {[%emt 0:02:30]} Rxd4 {[%emt 0:01:26]} 36. Rc2 {[%emt 0:00:38]} Qf5 {[%emt 0:01:12]} 37. Rc3 {[%emt 0:00:42]} Rc4 {[%emt 0:00:47]} 38. Bd2 {[%emt 0:00:38]} Rxc3 {[%emt 0:00:32]} 39. bxc3 {[%emt 0:00:01]} Rd7 {[%emt 0:00:48]} 40. Qe1 {[%emt 0:00:00]} Rd8 {[%emt 0:00:00]} 41. Nb4 {[%emt 0:01:42]} Qe5+ {[%emt 0:01:33]} 42. Qxe5 {[%emt 0:00:14]} fxe5 {[%emt 0:00:06]} 43. Bg5 {[%emt 0:00:07]} Rc8 {[%emt 0:00:47]} 44. Nd5 {[%emt 0:00:15]} Ba5 {[%emt 0:00:38]} 45. Kg3 {[%emt 0:00:38]} Bxc3 {[%emt 0:00:26]} 46. Kf3 {[%emt 0:00:15]} h6 {[%emt 0:00:34]} 47. Be7 {[%emt 0:00:05]} Kg8 {[%emt 0:00:58]} 48. Bd6 {[%emt 0:00:07]} Kf7 {[%emt 0:00:33]} 49. Ke4 {[%emt 0:00:14]} Rc4+ {[%emt 0:00:54]} 50. Ke3 {[%emt 0:00:09]} Ke6 {[%emt 0:00:23]} 51. Nxc3 {[%emt 0:00:12]} Rxc3+ {[%emt 0:00:15]} 52. Kd2 {[%emt 0:00:07]} Kxd6 {[%emt 0:00:09]} 53. Kxc3 {[%emt 0:00:07]} Kd5 {[%emt 0:00:13]} 54. Kd3 {[%emt 0:00:07]} a5 {[%emt 0:00:12]} 55. Ke3 {[%emt 0:00:07]} b4 {[%emt 0:00:10]} 56. axb4 {[%emt 0:00:13]} axb4 {[%emt 0:00:05]} 57. Kd3 {[%emt 0:00:06]} e4+ {[%emt 0:00:17]} 58. Ke3 {[%emt 0:00:08]} b3 {[%emt 0:00:18]} 59. Kd2 {[%emt 0:00:10]} Kd4 {[%emt 0:00:07]} 60. Ke2 {[%emt 0:00:07]} b2 {[%emt 0:00:04]} 61. Kd2 {[%emt 0:01:15]} b1=Q {[%emt 0:00:19]} 62. Ke2 {[%emt 0:00:06]} Qc2+ {[%emt 0:00:19]} 63. Ke1 {[%emt 0:00:10]} Ke3 {[%emt 0:00:10]} 64. Kf1 {[%emt 0:00:08]} Qf2# {[%emt 0:00:04]} 0-1

[Event "FIDE WCCC U10 2018"]
[Site "Santiago de Compostela"]
[Date "2018.11.04"]
[Round "1"]
[White "Amgalantengis, Enkh-Amgalan"]
[Black "Clotet Mas, Dan"]
[Result "1-0"]
[ECO "E81"]
[WhiteElo "1918"]
[BlackElo "1453"]
[Annotator "NA"]
[PlyCount "55"]
[EventDate "2018.11.04"]
[EventType "swiss"]
[EventCountry "ESP"]
[SourceTitle "playchess.com"]
[Source "ChessBase"]
[SourceQuality "1"]
[TimeControl "40/5400+30:1800+30"]

1. d4 {[%emt 0:00:00]} Nf6 {[%emt 0:00:00]} 2. c4 {[%emt 0:00:00]} g6 {[%emt 0:00:27]} 3. Nc3 {[%emt 0:00:08]} d6 {[%emt 0:00:39]} 4. e4 {[%emt 0:00:31]} Bg7 {[%emt 0:00:10]} 5. f3 {[%emt 0:01:02]} O-O {[%emt 0:00:21]} 6. Be3 {[%emt 0:00:08]} Nbd7 {[%emt 0:01:41]} 7. Bd3 {[%emt 0:00:45]} Re8 {[%emt 0:02:23] E81: King's Indian: Sämisch: 6th move deviations (including 6 Be3 c6)} (7... a6 8. Nge2 c5 9. O-O b6 10. Qd2 cxd4 11. Nxd4 Bb7 12. Rac1 Re8 13. Rfd1 e6 14. Bg5 Qc7 15. Bf1 Bf8 16. a3 Rac8 17. b4 Be7 {1-0 (45) Vidit,S (2651)-Schmaltz,R (2504) Berlin 2015}) 8. Nge2 {[%emt 0:01:06]} e5 {[%emt 0:00:14]} 9. d5 {[%emt 0:00:47]} a5 {[%emt 0:02:39]} 10. Qd2 {[%emt 0:08:38]} b6 {[%emt 0:02:38]} 11. a4 {[%emt 0:01:49]} Nc5 {[%emt 0:06:18]} 12. Bc2 {[%emt 0:00:10]} Ba6 {[%emt 0:02:16]} 13. b3 {[%emt 0:00:52]} Nfd7 $146 {[%emt 0:03:13]} ({Predecessor:} 13... Nh5 14. g4 Nf6 15. Bh6 Bc8 16. Rg1 Qe7 17. O-O-O Bd7 18. h4 Rac8 19. h5 {0-1 (19) Adames Rojas,A (1740)-Pacheco Marte,S Santo Domingo 2016}) 14. g4 {[%emt 0:04:45]} f6 {[%emt 0:09:56]} (14... Qh4+ $14 15. Ng3 Qh3) 15. O-O-O {[%emt 0:00:54]} g5 {[%emt 0:07:50]} 16. h4 {[%emt 0:11:19]} h6 {[%emt 0:03:11]} 17. Ng3 {[%emt 0:00:41]} Nf8 {[%emt 0:02:31]} 18. Nf5 {[%emt 0:26:07]} Ng6 {[%emt 0:06:34]} 19. hxg5 {[%emt 0:03:20]} hxg5 {[%emt 0:00:56]} 20. Qh2 {[%emt 0:00:30]} Nf8 {[%emt 0:02:47]} 21. Nxg7 {[%emt 0:09:24]} Kxg7 {[%emt 0:00:12]} 22. Qh8+ {[%emt 0:01:05]} Kf7 {[%emt 0:02:12]} 23. Rh6 {[%emt 0:02:29]} Qe7 $18 {[%emt 0:07:36]} 24. Rdh1 {[%emt 0:00:46]} Red8 {[%emt 0:00:55]} 25. Rh7+ {[%emt 0:01:46]} Nxh7 {[%emt 0:01:06]} 26. Rxh7+ {[%emt 0:00:06]} Kg6 {[%emt 0:01:08]} 27. Rg7+ {[%emt 0:00:04]} Qxg7 {[%emt 0:01:21]} 28. Qh5# {[%emt 0:00:05]} 1-0

[Event "FIDE WCCC U10 2018"]
[Site "Santiago de Compostela"]
[Date "2018.11.04"]
[Round "1"]
[White "Jin Yueheng"]
[Black "Martinez Rodriguez, Francisco Salvador"]
[Result "1-0"]
[ECO "D10"]
[WhiteElo "1914"]
[BlackElo "1442"]
[Annotator "NA"]
[PlyCount "73"]
[EventDate "2018.11.04"]
[EventType "swiss"]
[EventCountry "ESP"]
[SourceTitle "playchess.com"]
[Source "ChessBase"]
[SourceQuality "1"]
[TimeControl "40/5400+30:1800+30"]

1. d4 {[%emt 0:00:00]} d5 {[%emt 0:00:00]} 2. c4 {[%emt 0:00:00]} c6 {[%emt 0:00:00]} 3. cxd5 {[%emt 0:00:00]} cxd5 {[%emt 0:00:13]} 4. Bf4 {[%emt 0:00:00]} Nc6 {[%emt 0:01:25]} 5. e3 {[%emt 0:00:00]} a6 6. Nc3 {[%emt 0:00:13]} Nf6 {[%emt 0:02:18]} 7. Bd3 {[%emt 0:00:20]} e6 {[%emt 0:02:01]} 8. Rc1 {[%emt 0:00:05]} Bd6 {[%emt 0:01:30]} 9. Bxd6 {[%emt 0:00:05] D10: Slav Defence: 3 cxd5 (without early Nf3) and 3 Nc3} Qxd6 {[%emt 0:00:07]} 10. f4 {[%emt 0:00:06]} Bd7 {[%emt 0:02:12]} 11. Nf3 {[%emt 0:00:10] LiveBook: 7 Games} O-O {[%emt 0:01:47]} 12. O-O {[%emt 0:00:22]} (12. Ne5 Rfc8 {Predecessor:} 13. O-O Be8 (13... b5 {0-1 (42) Rychagov,A (2525)-Krivoshey,S (2493) playchess.com INT 2005}) 14. g4 Nd7 15. g5 Ne7 16. Qf3 b5 {0-1 (35) Volkov,S (2627)-Cori Tello,J (2636) Sitges 2017}) 12... Rfc8 {[%emt 0:03:57]} 13. Bb1 $146 {[%emt 0:00:57]} Be8 {[%emt 0:03:46]} 14. Ne5 {[%emt 0:00:57]} Qe7 {[%emt 0:05:02]} 15. Qd2 {[%emt 0:08:23]} Nxe5 {[%emt 0:09:52]} 16. fxe5 {[%emt 0:00:09]} Nd7 {[%emt 0:01:28]} 17. Qc2 {[%emt 0:04:39]} Nf8 {[%emt 0:02:41]} 18. Qf2 {[%emt 0:00:11]} Qg5 {[%emt 0:05:38]} 19. Rce1 {[%emt 0:05:28]} Rc7 {[%emt 0:07:15]} 20. e4 dxe4 {[%emt 0:03:34]} 21. Nxe4 {[%emt 0:01:29]} Qe7 {[%emt 0:00:21]} 22. Nd6 {[%emt 0:02:38]} Rd8 {[%emt 0:04:12]} 23. Qg3 {[%emt 0:04:45]} f5 {[%emt 0:07:33] [#]} (23... Rc6 $16) 24. d5 $1 {[%emt 0:01:23]} exd5 {[%emt 0:03:20]} 25. Nxf5 {[%emt 0:01:02]} ({Don't take} 25. Bxf5 Ng6) 25... Qc5+ {[%emt 0:01:58] [#]} 26. Kh1 $1 {[%emt 0:00:06]} Bg6 {[%emt 0:01:18] [#]} 27. b4 $1 {[%emt 0:08:55]} Qb6 $2 {[%emt 0:04:57] [#]} (27... Qc4) 28. e6 $1 {[%emt 0:01:23]} Bxf5 $18 {[%emt 0:04:31]} 29. e7 {[%emt 0:00:50]} Re8 {[%emt 0:01:45]} 30. exf8=Q+ Rxf8 {[%emt 0:00:17]} 31. Rxf5 {[%emt 0:00:46]} Rxf5 {[%emt 0:00:31]} 32. Bxf5 {[%emt 0:00:05]} Qc6 {[%emt 0:01:22]} 33. Be6+ {[%emt 0:00:35]} Kh8 {[%emt 0:00:51]} 34. Bxd5 {[%emt 0:00:25]} Qc1 {[%emt 0:01:35]} 35. h3 Qc2 {[%emt 0:01:13]} 36. Qxc7 {[%emt 0:01:04]} Qxc7 {[%emt 0:00:10]} 37. Re8# {[%emt 0:01:29]} 1-0

[Event "FIDE WCCC U10 2018"]
[Site "Santiago de Compostela"]
[Date "2018.11.04"]
[Round "1"]
[White "Tolmachev, Vyacheslav"]
[Black "Royal, Shreyas"]
[Result "1-0"]
[ECO "D97"]
[WhiteElo "1539"]
[BlackElo "2048"]
[Annotator "NA RC"]
[PlyCount "49"]
[EventDate "2018.11.04"]
[EventType "swiss"]
[EventCountry "ESP"]
[SourceTitle "playchess.com"]
[Source "ChessBase"]
[SourceQuality "1"]
[TimeControl "40/5400+30:1800+30"]

{[%evp 8,49,36,32767,29,32767,22,32767,22,26,74,75,32767,32767,32767,32767,32767,32767,32767,75,120,32767,141,0,32767,32767,32767,32767,32767,32767,32767,32767,32767,32767,32767,32767,739,827,29991,29992,29993,29994,29997,29998]} 1. d4 {[%emt 0:00:00]} Nf6 {[%emt 0:00:00]} 2. c4 {[%emt 0:00:00]} g6 {[%emt 0:00:56]} 3. Nc3 {[%emt 0:00:00]} d5 {[%emt 0:00:15]} 4. Qb3 {[%emt 0:04:06]} dxc4 {[%emt 0:03:00]} 5. Qxc4 {[%emt 0:00:19]} Nc6 {[%emt 0:01:07]} 6. Nf3 {[%emt 0:04:06]} Bg7 {[%emt 0:01:16]} 7. e4 {[%emt 0:00:31]} O-O {[%emt 0:00:48]} 8. Be2 {[%emt 0:03:52] LiveBook: 403 Games} Re8 {[%emt 0:02:05] D97: Grünfeldindisch (Russisches System, Ragosin-Variante)} (8... e5 $11 {remains equal.} 9. d5 (9. dxe5 Ng4 $11) 9... Nd4 10. Nxd4 exd4 11. Qxd4 c6 12. Qc4 b5 13. Qxc6 Bd7 14. Qd6 Re8 15. Bg5 b4 16. Qxb4 Nxd5 17. Nxd5 Qxg5 {½-½ (33) Vidit,S (2711)-Vachier Lagrave,M (2780) chess.com INT 2018}) 9. O-O $146 {[%emt 0:02:30]} ({Vorgänger:} 9. e5 Be6 10. Qa4 Nd5 11. O-O Nb6 12. Qd1 Bc4 13. Bxc4 Nxc4 14. Qe2 Nb6 15. Rd1 e6 16. Ne4 {1-0 (66) Tarini,G (1933)-Bidhar,R (1780) Thrissur 2014}) 9... e5 {[%emt 0:00:35]} 10. dxe5 {[%emt 0:01:42]} Nxe5 {[%emt 0:01:34]} 11. Nxe5 {[%emt 0:01:05]} Rxe5 {[%emt 0:00:14]} 12. Rd1 {[%emt 0:01:56]} Qe7 {[%emt 0:05:18]} 13. Bf4 {[%emt 0:08:27]} Be6 {[%emt 0:02:49]} 14. Qd4 {[%emt 0:00:47]} Rc5 {[%emt 0:02:08]} ({Black should try} 14... Ra5 $1 $14) 15. Be5 {[%emt 0:03:05]} (15. Qb4 $16) 15... Bg4 {[%emt 0:07:57]} 16. Bxf6 {[%emt 0:03:40]} Bxf6 {[%emt 0:00:25]} 17. e5 {[%emt 0:05:29]} Bxe5 {[%emt 0:01:50]} 18. Qxg4 {[%emt 0:03:02]} Bxc3 {[%emt 0:00:49]} 19. bxc3 {[%emt 0:00:08]} Rxc3 {[%emt 0:00:22]} 20. Rd7 {[%emt 0:01:38]} Qe8 {[%emt 0:03:36]} 21. Rad1 {[%emt 0:00:25]} c5 {[%emt 0:07:40]} (21... Qe5 $142 22. Bf3 Re8) 22. Bc4 {[%emt 0:01:02]} Kh8 {[%emt 0:02:30]} 23. Bxf7 {[%emt 0:02:19]} Qe5 {[%emt 0:00:52] [#]} 24. Bxg6 $1 {[%emt 0:00:39]} hxg6 {[%emt 0:01:44]} 25. Qh4+ {[%emt 0:00:23]} 1-0

[Event "FIDE WCCC U10 2018"]
[Site "Santiago de Compostela"]
[Date "2018.11.04"]
[Round "1"]
[White "Rodriguez Lopez, Sergio"]
[Black "Zhong, Kevin"]
[Result "0-1"]
[ECO "B35"]
[WhiteElo "1531"]
[BlackElo "2038"]
[Annotator "NA RC"]
[PlyCount "40"]
[EventDate "2018.11.04"]
[EventType "swiss"]
[EventCountry "ESP"]
[SourceTitle "playchess.com"]
[Source "ChessBase"]
[SourceQuality "1"]
[TimeControl "40/5400+30:1800+30"]

1. e4 c5 {[%emt 0:00:00]} 2. Nf3 {[%emt 0:00:02]} g6 {[%emt 0:00:00]} 3. d4 {[%emt 0:00:16]} cxd4 {[%emt 0:00:00]} 4. Nxd4 {[%emt 0:00:08]} Bg7 {[%emt 0:00:03]} 5. Nc3 {[%emt 0:00:10]} Nc6 {[%emt 0:00:06]} 6. Be3 {[%emt 0:00:27]} Nf6 {[%emt 0:00:18]} 7. Bc4 {[%emt 0:00:23]} Qa5 {[%emt 0:00:10] LiveBook: 943 Games} 8. f3 {[%emt 0:02:18]} Qb4 {[%emt 0:00:42]} 9. Bb3 {[%emt 0:00:20]} Nxe4 {[%emt 0:00:08]} 10. fxe4 {[%emt 0:01:13]} Bxd4 {[%emt 0:00:15]} 11. Bxd4 {[%emt 0:01:08]} Qxd4 {[%emt 0:00:34]} 12. Qxd4 {[%emt 0:00:11]} Nxd4 {[%emt 0:00:08]} 13. Nd5 {[%emt 0:00:05]} Kd8 {[%emt 0:06:23]} 14. e5 {[%emt 0:00:57]} (14. O-O $17 {war angesagt.} f6 15. h3) 14... Nc6 {[%emt 0:02:05]} 15. O-O $19 {[%emt 0:02:03]} Nxe5 {[%emt 0:01:04]} 16. Rae1 {[%emt 0:01:51]} d6 {[%emt 0:00:16]} 17. Nxe7 {[%emt 0:09:07]} Kxe7 {[%emt 0:01:02]} 18. Rxf7+ {[%emt 0:00:07]} Kd8 {[%emt 0:00:15]} 19. Rg7 {[%emt 0:02:11]} Bd7 {[%emt 0:02:24]} 20. Bg8 {[%emt 0:00:17]} h6 {[%emt 0:03:30]} 0-1